lending/lending_fUSD_20250210
["ID","MTS","AMOUNT","RATE_DAILY","PERIOD"]
[352601223,1739190632092,-500.71,0.00010271,2]
[352601224,1739190632101,-503.91,0.00010274,2]
[352601225,1739190632111,-506.1,0.00010277,2]
[352601226,1739190632120,-492.87,0.00010282,2]
[352601227,1739190632129,-300.0,0.00010284,2]
[352601228,1739190632138,-1578.65584177,0.00010285,2]
[352601229,1739190632152,-1305.0,0.00010285,2]
[352601307,1739190637933,-814.887844,9.95e-05,2]
[352601308,1739190637943,-11.72075056,0.00010285,2]
[352601480,1739190640018,-1424.0,0.00010285,2]
[352601483,1739190640029,-276.91061512,0.00010285,2]
[352601485,1739190640046,-14342.21836858,0.00010285,2]
[352601487,1739190640058,-4455.14139162,0.00010285,2]
[352601500,1739190640186,-506.35303235,0.00010285,2]
[352601502,1739190640196,-497.49,0.0001029,2]
[352601504,1739190640205,-493.45,0.00010301,2]
[352601506,1739190640214,-931.5,0.00010316,2]
[352601507,1739190640223,-501.98,0.00010317,2]
[352601509,1739190640232,-503.08,0.0001034,2]
[352601511,1739190640241,-336.53927529,0.00010361,2]
[352601513,1739190640253,-1721.33072471,0.00010361,2]
[352601515,1739190640262,-494.15,0.00010373,2]
[352601517,1739190640272,-200.0,0.00010419,2]
[352601519,1739190640281,-505.11,0.0001042,2]
[352601521,1739190640290,-506.87,0.00010487,2]
[352601523,1739190640300,-505.90391473,0.00010583,2]
[352601525,1739190640312,-2.12608527,0.00010583,2]
[352601527,1739190640321,-493.12,0.00010725,2]
[352601528,1739190640330,-1244.84532159,0.00010835,2]
[352601531,1739190640345,-156.26467841,0.00010835,2]
[352601533,1739190640354,-493.56,0.0001093,2]
[352601535,1739190640363,-498.19,0.00011225,2]
[352601537,1739190640372,-496.37,0.00011651,2]
[352601538,1739190640381,-350.56,0.00011673,2]
[352601540,1739190640390,-150.0,0.00011688,2]
[352601542,1739190640400,-1008.2,0.00011762,2]
[352601544,1739190640409,-164.85,0.00012087,2]
[352601546,1739190640419,-496.81,0.00012143,2]
[352601548,1739190640432,-1382.02,0.00012449,2]
[352601549,1739190640441,-104.73452479,0.00012529,2]
[352601550,1739190640452,-644.91547521,0.00012529,2]
[352601551,1739190640461,-3334.57159841,0.00012603,2]
[352601552,1739190640472,-419.77238971,0.00012603,2]
[352601553,1739190640483,-1656.58520388,0.00012603,2]
[352601554,1739190640493,-9446.3636837,0.00012603,2]
[352601555,1739190640504,-644.08472678,0.00012603,2]
[352601556,1739190640515,-1766.54024697,0.00012603,2]
[352601567,1739190640664,-2224.94215055,0.00012603,2]
[352601569,1739190640673,-443.81,0.0001263,2]
[352601571,1739190640683,-9649.0,0.00012664,2]
[352601573,1739190640692,-250.0,0.00012665,2]
[352601575,1739190640701,-496.14,0.00012734,2]
[352601577,1739190640710,-1868.4691107,0.00012739,2]
[352601579,1739190640720,-504.07,0.00012768,2]
[352601581,1739190640729,-3343.56150721,0.000128,2]
[352601666,1739190641537,-530.51999999,0.000128,2]
[352601668,1739190641548,-978.72213678,0.000128,2]
[352601670,1739190641560,-607.64675005,0.000128,2]
[352601681,1739190641645,-376.11990529,0.000128,2]
[352601688,1739190641702,-1438.54768027,0.000128,2]
[352601830,1739190643039,-748.63230573,0.000128,2]
[352601860,1739190643420,-1963.40429168,0.000128,2]
[352601862,1739190643431,-25448.49416931,0.000128,2]
[352602142,1739190646123,-941.98219224,0.000128,2]
[352602144,1739190646135,-414.86736611,0.000128,2]
[352602189,1739191832178,-572.2958,8.973e-05,2]
[352602190,1739191832187,-500.0,9.543e-05,2]
[352602191,1739191832197,-500.0,9.87e-05,2]
[352602192,1739191832206,-4003.29617115,0.0001,2]
[352602193,1739191832215,-1409.871104,0.00010063,2]
[352602194,1739191832224,-674.68,0.00010114,2]
[352602195,1739191832234,-257.65,0.00010137,2]
[352602196,1739191832243,-900.0,0.000102,3]
[352602197,1739191832252,-5554.0,0.000105,5]
[352602198,1739191832261,-4533.93,0.00010763,2]
[352602199,1739191832270,-342.69,0.00010845,2]
[352602200,1739191832279,-465.75,0.00010933,2]
[352602201,1739191832288,-163.69,0.0001122,2]
[352602202,1739191832297,-150.0,0.00011397,2]
[352602203,1739191832307,-171.16,0.0001143,2]
[352602204,1739191832316,-44991.33375679,0.00011594,3]
[352602205,1739191832352,-725.95396463,0.00011594,3]
[352602206,1739191832363,-284.169996,0.00011594,3]
[352602207,1739191832375,-387.94573014,0.00011594,3]
[352602208,1739191832388,-120878.71805362,0.00011594,3]
[352602209,1739191832403,-193871.8216,0.00011594,3]
[352602210,1739191832419,-1373.08667666,0.00011594,3]
[352602211,1739191832430,-4629.5304814,0.00011594,3]
[352602212,1739191832536,-2093.16519778,0.00011594,3]
[352602397,1739191838250,-1049.99999,0.00011594,3]
[352602398,1739191838363,-19500.0,0.00011594,3]
[352602399,1739191838417,-4184.156181,0.00011594,3]
[352602554,1739191840105,-2024.81069709,0.00011594,3]
[352602557,1739191840116,-460.85805502,0.00011594,3]
[352602568,1739191840218,-855.855009,0.00011594,3]
[352602719,1739191841624,-492.64,0.00011594,2]
[352602721,1739191841633,-455.08946,0.00011594,3]
[352602723,1739191841644,-354.09052448,0.00011594,3]
[352603183,1739191846234,-647.06,0.00011594,3]
[352603185,1739191846247,-952.336815,0.00011594,3]
[352603187,1739191846259,-797.2045167,0.00011594,3]
[352603190,1739191846270,-455.84,0.00011594,3]
[352603193,1739191846292,-446.75305566,0.00011594,3]
[352603209,1739191846459,-2889.79047405,0.00011594,3]
[352603210,1739191846471,-1189.33499715,0.00011594,3]
[352603223,1739191920681,10000.0,0.0002,120]
[352603224,1739191971845,687.26,8.746e-05,2]
[352603249,1739193032369,-802.97856631,8.973e-05,2]
[352603250,1739193032583,-277.9276,8.973e-05,2]
[352603251,1739193032595,-3919.09383369,8.973e-05,2]
[352603252,1739193032605,-154.89,0.00010137,2]
[352603253,1739193032616,-493.06,0.00010302,2]
[352603254,1739193032625,-503.8,0.00010353,2]
[352603255,1739193032634,-23900.0,0.00010365,2]
[352603256,1739193032643,-491.97,0.00010421,2]
[352603257,1739193032652,-168.44205195,0.0001043,2]
[352603258,1739193032661,-150.0,0.0001043,2]
[352603259,1739193032670,-505.14,0.00010503,2]
[352603260,1739193032679,-1107.51,0.00010575,2]
[352603261,1739193032689,-568.38,0.00010589,2]
[352603262,1739193032698,-1000.0,0.00010596,2]
[352603263,1739193032708,-500.0,0.00010621,2]
[352603264,1739193032717,-200.0,0.00010621,2]
[352603265,1739193032726,-241.12,0.00010624,2]
[352603266,1739193032735,-885.21,0.00010624,2]
[352603267,1739193032745,-163.2,0.00010666,2]
[352603268,1739193032754,-200.0,0.00010677,2]
[352603269,1739193032763,-687.26,0.0001101,2]
[352603270,1739193032773,-520.53690149,0.00011492,2]
[352603271,1739193032787,-61.60213287,0.00011492,2]
[352603272,1739193032797,-150.0,0.00011492,2]
[352603273,1739193032806,-1017.2110922,0.00011493,2]
[352603274,1739193032823,-6738.19653471,0.00011493,2]
[352603275,1739193032839,-440.12893311,0.00011493,2]
[352603298,1739193038239,-6769.41150584,0.00011493,2]
[352603305,1739193038299,-35272.56046985,0.00011493,2]
[352603307,1739193038309,-302.49999999,0.00011493,2]
[352603309,1739193038319,-1305.87200176,0.00011493,2]
[352603311,1739193038329,-503.9,0.00011496,2]
[352603313,1739193038339,-877.42,0.000115,2]
[352603315,1739193038349,-831.49,0.000115,2]
[352603316,1739193038358,-500.0,0.00011501,2]
[352603318,1739193038371,-500.0,0.00011541,2]
[352603320,1739193038381,-500.0,0.00011573,2]
[352603322,1739193038391,-300.0,0.00011592,2]
[352603324,1739193038401,-300.0,0.00011592,2]
[352603326,1739193038411,-300.0,0.00011592,2]
[352603328,1739193038420,-666.0,0.00011592,2]
[352603330,1739193038430,-500.0,0.00011592,2]
[352603332,1739193038439,-300.0,0.00011592,2]
[352603334,1739193038449,-237.33237754,0.00011592,3]
[352603336,1739193038458,-188.48695875,0.00011592,2]
[352603338,1739193038468,-1511.403,0.00011593,2]
[352603340,1739193038477,-175.222,0.00011593,2]
[352603342,1739193038486,-300.0,0.00011593,2]
[352603344,1739193038503,-300.0,0.00011593,2]
[352603346,1739193038514,-666.0,0.00011593,2]
[352603348,1739193038525,-300.0,0.00011593,2]
[352603350,1739193038535,-500.15,0.00011593,2]
[352603352,1739193038544,-201.6423657,0.00011593,2]
[352603354,1739193038553,-493.71,0.00011594,2]
[352603356,1739193038562,-331185.03925757,0.00011594,3]
[352603358,1739193038574,-633.57822847,0.00011594,3]
[352603363,1739193038622,-9901.5,0.00011594,3]
[352603365,1739193038633,-501.40218539,0.00011594,3]
[352603367,1739193038645,-13336.42233272,0.00011594,3]
[352603370,1739193038656,-13565.0,0.00011594,3]
[352603374,1739193038668,-20613.11336725,0.00011594,3]
[352603378,1739193038679,-32874.96524674,0.00011594,3]
[352603380,1739193038691,-163695.72008451,0.00011594,3]
[352603552,1739193040326,-2005.20271526,0.00011594,3]
[352603555,1739193040337,-116260.23823978,0.00011594,3]
[352603560,1739193040376,-312.36002166,0.00011594,3]
[352603562,1739193040387,-321.0256511,0.00011594,3]
[352603564,1739193040400,-2933.94515752,0.00011594,3]
[352603575,1739193040492,-502.41,0.00011493,2]
[352603576,1739193040501,-2340203.39790765,0.00011594,3]
[352603579,1739193040512,-424.14779519,0.00011594,3]
[352604188,1739193046549,-495.193653,0.00011594,3]
[352604190,1739193046560,-67491.76177096,0.00011594,3]
[352604207,1739193046825,-1748.09154425,0.00011594,3]
[352604656,1739193582182,2640.2917,8.699e-05,2]
[352604657,1739193667446,2782.250129,8.791e-05,2]
[352604659,1739193974096,-300.0,8.835e-05,2]
[352604660,1739193974118,-4627.1419,8.836e-05,2]
[352604661,1739193974141,-3362.145,8.836e-05,2]
[352604662,1739193974164,-516.0476,8.836e-05,2]
[352604663,1739193974186,-1194.6655,8.836e-05,2]
[352604664,1739193974985,-1658.23802081,8.836e-05,2]
[352604665,1739193975008,-500.0,8.903e-05,2]
[352604666,1739193975033,-618.53,8.97e-05,2]
[352604667,1739193975055,-5670.70415835,8.97e-05,2]
[352604668,1739193975078,-1552.52782084,8.973e-05,2]
[352604669,1739193976607,-3447.47217916,8.973e-05,2]
[352604670,1739193976631,-3996.0201,8.973e-05,2]
[352604671,1739194013813,200.927,8.836e-05,2]
[352604672,1739194019329,2355.58072084,8.973e-05,2]
[352604679,1739194037705,-2644.41927916,8.973e-05,2]
[352604689,1739194056919,3754.0935,8.836e-05,2]
[352604690,1739194109181,3601.48722084,8.973e-05,2]
[352604698,1739194190750,621.97,8.34e-05,2]
[352604704,1739194231531,-271.5,8.973e-05,2]
[352604708,1739194231596,-2226.9,8.973e-05,2]
[352604710,1739194231608,-1190.87951664,8.973e-05,2]
[352604711,1739194231619,-3336.38506252,8.973e-05,2]
[352604712,1739194231628,-500.0,9.719e-05,2]
[352604713,1739194231638,-500.0,9.86e-05,2]
[352604714,1739194231647,-1556.47893178,0.0001,2]
[352604715,1739194231657,-357.96,0.00010137,2]
[352604716,1739194231668,-300.0,0.00010168,2]
[352604717,1739194231677,-244.92,0.0001017,2]
[352604718,1739194231687,-271.58,0.0001019,2]
[352604719,1739194231696,-787.07,0.00010282,2]
[352604720,1739194231706,-163.63,0.00010308,2]
[352604721,1739194231716,-500.0,0.00010582,2]
[352604722,1739194231729,-621.97,0.00010604,2]
[352604723,1739194231738,-500.0,0.00010691,2]
[352604724,1739194231748,-1006.06,0.00010734,2]
[352604725,1739194231757,-250.0,0.000108,2]
[352604726,1739194231766,-194.75,0.00010817,2]
[352604727,1739194231775,-1000.0,0.00010828,2]
[352604728,1739194231785,-500.0,0.00011,2]
[352604729,1739194231794,-303.0,0.00011,2]
[352604730,1739194231803,-172.38,0.00011142,2]
[352604731,1739194231812,-150.00000001,0.00011145,2]
[352604732,1739194231821,-150.0,0.00011145,2]
[352604733,1739194231831,-150.0,0.00011145,2]
[352604734,1739194231840,-150.0,0.00011145,2]
[352604735,1739194231849,-295.0,0.00011183,2]
[352604736,1739194231860,-150.0,0.0001128,2]
[352604737,1739194231869,-150.99,0.00011281,2]
[352604738,1739194231878,-1368.70455808,0.00011281,2]
[352604739,1739194231890,-322.51260265,0.00011281,2]
[352604740,1739194231915,-650.75124806,0.00011281,2]
[352604741,1739194231940,-518.94,0.00011281,2]
[352604742,1739194231954,-375.839991,0.00011281,2]
[352604743,1739194231965,-1000.0,0.00011281,2]
[352604744,1739194231976,-385.11874164,0.00011281,2]
[352604745,1739194231990,-1370.68264793,0.00011281,2]
[352604746,1739194232002,-1376.80000004,0.00011281,2]
[352604749,1739194232033,-1446.33781593,0.00011281,2]
[352604751,1739194232044,-1184.30239467,0.00011281,2]
[352604753,1739194232053,-1220.79760533,0.00011281,2]
[352605065,1739194237393,-282.55999991,0.00011281,2]
[352605066,1739194237508,-564.6899998,0.00011281,2]
[352605067,1739194237569,-468.54598073,0.00011281,2]
[352605068,1739194237630,-1324.19641423,0.00011281,2]
[352605069,1739194237642,-926.96759712,0.00011281,2]
[352605070,1739194237657,-949.82050932,0.00011281,2]
[352605245,1739194239527,-3484.35189356,0.00011281,2]
[352605247,1739194239536,-3081.06,0.00011281,2]
[352605250,1739194239546,-9285.06,0.00011281,2]
[352605252,1739194239555,-499.99,0.00011281,2]
[352605253,1739194239564,-999.99,0.00011281,2]
[352605255,1739194239574,-299.99,0.00011281,2]
[352605257,1739194239583,-641.9505687,0.00011494,2]
[352605259,1739194239592,-501.7,0.00011494,2]
[352605261,1739194239602,-494.31,0.00011494,2]
[352605263,1739194239612,-507.9,0.00011494,2]
[352605265,1739194239621,-499.48,0.00011494,2]
[352605267,1739194239630,-507.69,0.00011494,2]
[352605269,1739194239639,-162.09347594,0.00011494,2]
[352605271,1739194239649,-502.07,0.00011524,2]
[352605273,1739194239658,-496.25,0.00011548,2]
[352605275,1739194239668,-520.53690149,0.00011593,2]
[352605277,1739194239677,-516.58942469,0.00011593,2]
[352605279,1739194239687,-495.97,0.00011594,2]
[352605281,1739194239696,-509.61,0.00011594,2]
[352605283,1739194239705,-306531.15103615,0.00011594,2]
[352605285,1739194239714,-4000.0,0.00011594,2]
[352605287,1739194239723,-200.0,0.00011594,2]
[352605289,1739194239733,-200.0,0.0001171,2]
[352605291,1739194239742,-668.7,0.00011949,2]
[352605293,1739194239751,-885.21,0.00011951,2]
[352605295,1739194239760,-668.7,0.00011953,2]
[352605297,1739194239769,-668.7,0.00011956,2]
[352605299,1739194239784,-668.7,0.00011959,2]
[352605301,1739194239793,-668.7,0.00011962,2]
[352605303,1739194239802,-668.7,0.00011965,2]
[352605305,1739194239812,-668.7,0.00011968,2]
[352605307,1739194239821,-668.7,0.00011971,2]
[352605309,1739194239830,-668.7,0.00011975,2]
[352605311,1739194239839,-668.7,0.00011978,2]
[352605313,1739194239848,-668.7,0.00011981,2]
[352605315,1739194239857,-668.7,0.00011984,2]
[352605317,1739194239867,-668.7,0.00011987,2]
[352605319,1739194239877,-668.7,0.0001199,2]
[352605320,1739194239887,-668.7,0.00011994,2]
[352605322,1739194239897,-668.7,0.00011997,2]
[352605325,1739194239906,-668.7,0.00012,2]
[352605327,1739194239915,-35841.80583616,0.00012,2]
[352605329,1739194239925,-1100.0,0.00012,3]
[352605331,1739194239934,-668.7,0.00012003,2]
[352605333,1739194239944,-668.7,0.00012006,2]
[352605334,1739194239953,-668.7,0.00012009,2]
[352605337,1739194239963,-179.315263,0.000121,2]
[352605338,1739194239973,-179.315263,0.000121,2]
[352605341,1739194239983,-500.0,0.00012173,2]
[352605343,1739194239992,-1000.0,0.00012182,2]
[352605344,1739194240002,-7922.47379343,0.00012198,3]
[352605347,1739194240011,-1075340.36738928,0.00012198,3]
[352605349,1739194240021,-219.45416395,0.00012198,2]
[352605351,1739194240030,-151.0,0.00012199,2]
[352605353,1739194240039,-460444.17761357,0.00012199,2]
[352605355,1739194240051,-348.82372796,0.00012199,2]
[352605358,1739194240074,-1465.97186573,0.00012199,2]
[352605605,1739194242497,-6332.2849218,0.00012199,2]
[352605626,1739194242665,-967.51452919,0.00012199,2]
[352605629,1739194242678,-50000.0,0.00012199,2]
[352605941,1739194245827,-1422.48829525,0.00012199,2]
[352605942,1739194245839,-268.48009847,0.00012199,2]
[352606820,1739195431708,-369.8465,8.836e-05,2]
[352606821,1739195431718,-2795.65350002,8.973e-05,2]
[352606822,1739195431730,-286.09016454,8.973e-05,2]
[352606823,1739195431763,-306.05575,8.973e-05,2]
[352606824,1739195431775,-1234.28088544,8.973e-05,2]
[352606825,1739195431784,-605.79,9.01e-05,2]
[352606826,1739195431794,-500.0,9.719e-05,2]
[352606827,1739195431803,-500.0,9.719e-05,2]
[352606828,1739195431812,-500.0,9.719e-05,2]
[352606829,1739195431822,-160.1,9.788e-05,2]
[352606830,1739195431831,-252.53,0.00010137,2]
[352606831,1739195431840,-160.11,0.00010332,2]
[352606832,1739195431849,-501.39,0.00010754,2]
[352606833,1739195431865,-160.1,0.00010876,2]
[352606834,1739195431879,-1107.51,0.00010972,2]
[352606835,1739195431890,-266.02,0.00010972,2]
[352606836,1739195431899,-749.64,0.00010972,2]
[352606837,1739195431908,-299.99,0.00010972,2]
[352606838,1739195431918,-168.44205195,0.00011047,2]
[352606839,1739195431928,-150.0,0.00011047,2]
[352606840,1739195431937,-150.0,0.0001126,2]
[352606841,1739195431947,-150.0,0.00011273,2]
[352606842,1739195431956,-605.79,0.00011274,2]
[352606843,1739195431966,-150.99,0.00011274,2]
[352606844,1739195431975,-27708.61577228,0.00011274,2]
[352606845,1739195431991,-1103.55713475,0.00011274,2]
[352606846,1739195432014,-1000.398,0.00011274,2]
[352606850,1739195432187,-1565.50250275,0.00011274,2]
[352606853,1739195432211,-341.4833559,0.00011274,2]
[352606855,1739195432222,-1197.584209,0.00011274,2]
[352607026,1739195437604,-19527.62016,0.00011274,2]
[352607027,1739195437665,-4102.02330003,0.00011274,2]
[352607028,1739195437678,-9774.94543347,0.00011274,2]
[352607029,1739195437835,-87815.16013182,0.00011274,2]
[352607030,1739195437845,-200.0,0.00011293,2]
[352607031,1739195437855,-929.17,0.00011295,2]
[352607032,1739195437865,-500.0,0.00011332,2]
[352607033,1739195437874,-833.32,0.00011394,2]
[352607034,1739195437884,-775.26,0.00011409,2]
[352607035,1739195437894,-775.26,0.00011409,2]
[352607036,1739195437903,-775.26,0.00011409,2]
[352607037,1739195437912,-361.04,0.00011409,2]
[352607038,1739195437923,-774.96,0.00011409,2]
[352607039,1739195437932,-250.0,0.00011412,2]
[352607040,1739195437941,-1000.0,0.00011417,2]
[352607042,1739195437950,-775.26,0.00011441,2]
[352607043,1739195437959,-775.26,0.00011641,2]
[352607045,1739195437968,-34546.12275583,0.00011999,2]
[352607047,1739195437979,-1028.75685184,0.00012,2]
[352607050,1739195437988,-167267.23938722,0.00012,2]
[352607230,1739195439710,-722.19529931,0.00012,2]
[352607232,1739195439727,-1323.0,0.00012,2]
[352607238,1739195439779,-304.33735203,0.00012,2]
[352607241,1739195439798,-2240.91721747,0.00012,2]
[352607243,1739195439815,-2663.91719997,0.00012,2]
[352607248,1739195439853,-1585.51161415,0.00012,2]
[352607251,1739195439871,-472.86339972,0.00012,2]
[352607254,1739195439886,-345.16037055,0.00012,2]
[352607258,1739195439916,-880.88012,0.00012,2]
[352607260,1739195439931,-799.91659819,0.00012,2]
[352607266,1739195439983,-2022.30127295,0.00012,2]
[352607269,1739195439998,-985.92162955,0.00012,2]
[352607272,1739195440016,-668.622,0.00012,2]
[352607274,1739195440032,-277.32348794,0.00012,2]
[352607277,1739195440045,-31572.7057168,0.00012,2]
[352607280,1739195440071,-3300.37141338,0.00012,2]
[352607283,1739195440086,-485.79,0.00012,2]
[352607332,1739195440669,-1695.03854347,0.00012,2]
[352607543,1739195442701,-497.68,0.00011274,2]
[352607546,1739195442710,-634.90449139,0.00012,2]
[352607555,1739195442757,-779.03735431,0.00012,2]
[352607562,1739195442814,-11116.34384161,0.00012,2]
[352607564,1739195442825,-981.537324,0.00012,2]
[352607566,1739195442836,-656.53035309,0.00012,2]
[352607568,1739195442848,-282.49043192,0.00012,2]
[352607570,1739195442859,-6855.90067227,0.00012,2]
[352607573,1739195442875,-4686.32964663,0.00012,2]
[352607575,1739195442888,-1770.67360182,0.00012,2]
[352607577,1739195442900,-847.79653678,0.00012,2]
[352607579,1739195442912,-1359.61261136,0.00012,2]
[352607582,1739195442925,-21097.77249338,0.00012,2]
[352607584,1739195442937,-10377.31968114,0.00012,2]
[352607586,1739195442948,-8746.08535037,0.00012,2]
[352607588,1739195442960,-1570.13585198,0.00012,2]
[352607592,1739195442994,-1469.6840553,0.00012,2]
[352607595,1739195443006,-4163.72940921,0.00012,2]
[352607791,1739195445741,-4821.15512377,0.00012,2]
[352607792,1739195445803,-516.10049067,0.00012,2]
[352607793,1739195445867,-680490.1872741,0.00012,2]
[352607794,1739195445877,-117100.59610099,0.000121,2]
[352607795,1739195445886,-500.0,0.000121,2]
[352607796,1739195445896,-2000.0,0.000121,2]
[352607797,1739195445905,-200.0,0.000121,2]
[352607798,1739195445914,-200.0,0.00012101,2]
[352607799,1739195445924,-500.0,0.00012101,2]
[352607800,1739195445933,-500.0,0.00012101,2]
[352607801,1739195445943,-2000.0,0.00012101,2]
[352607802,1739195445953,-500.0,0.00012101,2]
[352607803,1739195445962,-200.0,0.00012101,2]
[352607804,1739195445973,-200.0,0.00012101,2]
[352607805,1739195445983,-503.31,0.00012186,2]
[352607806,1739195445995,-1209.122,0.00012186,2]
[352607807,1739195446005,-950.03608164,0.00012198,3]
[352607808,1739195446014,-4000.0,0.00012199,2]
[352607809,1739195446023,-507.8,0.00012199,2]
[352607810,1739195446033,-491.45,0.00012199,2]
[352607811,1739195446042,-259.25027142,0.00012298,2]
[352607813,1739195446051,-300.0,0.00012298,2]
[352607814,1739195446061,-666.0,0.00012298,2]
[352607815,1739195446070,-237.33237754,0.00012299,3]
[352607816,1739195446079,-192106.91512953,0.00012299,3]
[352607817,1739195446091,-789.86057287,0.00012299,3]
[352607819,1739195446114,-84262.14361795,0.00012299,3]
[352607821,1739195446126,-1000.0,0.00012299,3]
[352607823,1739195446141,-1810.38398357,0.00012299,3]
[352607860,1739196631878,-872.16385624,8.973e-05,2]
[352607861,1739196631941,-4127.83614376,8.973e-05,2]
[352607862,1739196631951,-20000.0,8.973e-05,2]
[352607863,1739196631974,-500.0,9.118e-05,2]
[352607864,1739196631983,-625.97,9.321e-05,2]
[352607865,1739196631992,-500.0,9.87e-05,2]
[352607866,1739196632002,-500.0,9.87e-05,2]
[352607867,1739196632011,-154.89,0.00010137,2]
[352607868,1739196632021,-1062.61745127,0.00010241,2]
[352607869,1739196632031,-1062.61745127,0.00010247,2]
[352607870,1739196632041,-1062.61745127,0.00010258,2]
[352607871,1739196632050,-1062.61745127,0.00010272,2]
[352607872,1739196632059,-2883.65,0.00011026,2]
[352607873,1739196632069,-163.85,0.00011096,2]
[352607874,1739196632078,-716.02,0.0001127,2]
[352607875,1739196632088,-439.79,0.0001137,2]
[352607876,1739196632097,-774.36,0.0001137,2]
[352607877,1739196632106,-300.0,0.00011389,2]
[352607878,1739196632116,-1000.0,0.0001139,2]
[352607879,1739196632125,-439.79,0.00011416,2]
[352607880,1739196632135,-237.69774734,0.00011416,2]
[352607881,1739196632146,-202.09225266,0.00011416,2]
[352607882,1739196632156,-775.26,0.00011416,2]
[352607883,1739196632165,-150.99,0.00011416,2]
[352607884,1739196632176,-19527.62,0.00011416,2]
[352607885,1739196632186,-999.99,0.00011416,2]
[352607886,1739196632195,-191.65,0.00011441,2]
[352607887,1739196632204,-511.61,0.00011441,2]
[352607888,1739196632214,-150.0,0.00011482,2]
[352607889,1739196632223,-8145.87,0.00011482,2]
[352607890,1739196632233,-9999.99,0.00011482,2]
[352607891,1739196632243,-241.12,0.00011483,2]
[352607892,1739196632252,-152.42,0.00011483,2]
[352607893,1739196632262,-299.99,0.00011483,2]
[352607894,1739196632271,-499.99,0.00011483,2]
[352607895,1739196632280,-992.58,0.00011483,2]
[352607896,1739196632289,-3004.53,0.00011483,2]
[352607897,1739196632298,-6439.48,0.00011483,2]
[352607898,1739196632308,-3607.77,0.00011483,2]
[352607899,1739196632317,-625.97,0.00011585,2]
[352607900,1739196632327,-439.79,0.00011641,2]
[352607901,1739196632336,-497.05,0.00011725,2]
[352607902,1739196632345,-499.11,0.00011915,2]
[352607903,1739196632355,-1245.6460738,0.00012052,2]
[352607904,1739196632364,-967.298,0.00012052,2]
[352607905,1739196632373,-500.06,0.00012052,2]
[352607907,1739196632382,-503.23,0.00012052,2]
[352607909,1739196632392,-491.57,0.00012052,2]
[352607910,1739196632401,-411.79465769,0.00012197,2]
[352607911,1739196632410,-194.43770358,0.00012198,2]
[352607912,1739196632420,-194.89831017,0.00012199,2]
[352607913,1739196632431,-295.25168983,0.00012199,2]
[352607914,1739196632441,-506.93319023,0.00012199,2]
[352607916,1739196632450,-500.0,0.000122,2]
[352607918,1739196632459,-2000.0,0.000122,2]
[352607920,1739196632468,-500.0,0.000122,2]
[352607922,1739196632477,-200.0,0.000122,2]
[352607924,1739196632486,-209684.8325553,0.000122,2]
[352607926,1739196632497,-40899.02332978,0.000122,2]
[352607928,1739196632506,-51667.47367553,0.000122,2]
[352607931,1739196632522,-1997.21734795,0.000122,2]
[352607933,1739196632532,-18261.72184832,0.000122,2]
[352607935,1739196632544,-15990.06597559,0.000122,2]
[352607938,1739196632555,-712.02367317,0.000122,2]
[352607941,1739196632574,-274.7353825,0.000122,2]
[352607943,1739196632585,-374.9086065,0.000122,2]
[352607945,1739196632596,-267.861,0.000122,2]
[352607947,1739196632607,-497.8509999,0.000122,2]
[352607950,1739196632618,-691.49400045,0.000122,2]
[352607952,1739196632629,-284.4865955,0.000122,2]
[352607954,1739196632639,-293.998,0.000122,2]
[352607956,1739196632650,-308.0963464,0.000122,2]
[352607958,1739196632661,-292.13799996,0.000122,2]
[352607960,1739196632672,-288.945,0.000122,2]